bitfinex/quotes_ETHUSD_20250114
["timestamp","ask_amount","ask_price","bid_price","bid_amount"]
[1736841907830,4.26120638,3181.5,3181.4,0.44525056]
[1736841908030,7.28112299,3181.5,3181.4,0.12975056]
[1736841908230,7.24183264,3181.5,3181.4,0.12975056]
[1736841910520,3.90367,3181.5,3181.4,0.12975056]
[1736841911399,3.14317,3181.5,3181.1,1.1301]
[1736841911598,0.03929053,3181.7,3181.1,1.1301]
[1736841911922,3.14342,3181.3,3181.2,0.44549851]
[1736841913507,3.14342,3181.3,3181.2,0.12999851]
[1736841913508,3.90392,3181.3,3181.2,0.12999851]
[1736841913727,3.94321609,3181.3,3181.0,3.3448387]
[1736841913922,3.14356,3181.1,3181.0,3.3448387]
[1736841914095,3.18285614,3181.1,3181.0,3.3448387]
[1736841914692,3.14282,3181.9,3180.8,7.28648511]
[1736841914693,3.1428,3181.9,3181.2,0.3155]
[1736841915025,3.1428,3181.9,3181.1,0.8146]
[1736841915026,3.1429,3181.8,3181.4,0.3155]
[1736841915340,0.7605,3182.0,3181.4,0.3155]
[1736841915508,3.0,3182.6,3181.6,0.3155]
[1736841915711,3.90295,3182.3,3181.6,0.3155]
[1736841916291,3.14245,3182.3,3181.6,0.3155]
[1736841916795,0.03928318,3182.2,3181.6,0.3155]
[1736841918406,3.14245,3182.3,3181.6,0.3155]
[1736841918743,0.03928319,3182.2,3181.6,0.3155]
[1736841918948,3.1422,3182.5,3181.7,0.7971]
[1736841919151,3.14228,3182.4,3181.7,0.7971]
[1736841919295,3.14237,3182.4,3181.7,0.7971]
[1736841919818,3.14237,3182.4,3181.7,3.8264387]
[1736841920038,3.0,3182.9,3181.8,0.7971]
[1736841920203,3.1421,3182.6,3181.8,0.7971]
[1736841920516,3.14229,3182.4,3182.0,2.0]
[1736841920717,3.14246,3182.3,3182.0,2.0]
[1736841921050,3.18173985,3182.3,3182.0,2.0]
[1736841921347,0.03927985,3182.3,3182.0,2.0]
[1736841921551,3.14248,3182.2,3182.0,2.0]
[1736841922105,3.14233,3182.4,3182.0,2.0]
[1736841922943,3.14233,3182.4,3182.1,0.12898019]
[1736841923153,0.7969,3182.6,3182.1,0.12898019]
[1736841923331,3.14219,3182.5,3182.2,0.7971]
[1736841923530,3.14219,3182.5,3182.3,0.12884286]
[1736841923736,3.14219,3182.5,3182.2,0.7971]
[1736841923941,3.14219,3182.5,3182.3,0.12884286]
[1736841924304,3.14219,3182.5,3182.2,0.7971]
[1736841924503,3.18158961,3182.4,3182.3,0.12884286]
[1736841924739,3.18158961,3182.4,3182.2,0.7971]
[1736841925107,3.18158961,3182.4,3182.3,0.12884286]
[1736841925303,3.14238,3182.3,3182.2,0.7971]
[1736841925640,3.14248,3182.2,3182.0,2.0]
[1736841926009,3.18166264,3182.3,3182.0,2.0]
[1736841926946,3.14223,3182.5,3182.0,2.0]
[1736841927243,3.14227,3182.5,3182.0,2.0]
[1736841927449,3.14229,3182.4,3182.0,2.0]
[1736841928055,0.7969,3182.8,3182.0,2.0]
[1736841928212,3.14215,3182.6,3182.0,2.0]
[1736841928404,0.03927948,3182.5,3182.0,2.0]
[1736841928831,0.03927948,3182.5,3182.0,5.0293387]
[1736841929448,0.7969,3182.8,3182.0,8.1720087]
[1736841929615,0.03927944,3182.7,3182.1,0.7971]
[1736841929815,0.7969,3183.1,3182.1,0.7971]
[1736841929816,3.14228,3182.4,3182.1,0.7971]
[1736841930936,0.0392795,3182.3,3182.0,5.0293387]
[1736841931112,3.1425,3182.2,3182.0,5.0293387]
[1736841935923,3.14197,3182.8,3182.1,0.7963]
[1736841936419,3.14209,3182.6,3182.1,0.7963]
[1736841936620,3.14196,3182.8,3182.1,0.7963]
[1736841936937,3.14198,3182.7,3182.1,0.7963]
[1736841937947,3.14198,3182.7,3182.2,0.101712]
[1736841938159,0.03927837,3182.6,3182.2,0.28895881]
[1736841938467,3.14238,3182.3,3182.2,0.28895881]
[1736841938773,0.03928132,3182.4,3182.2,0.28895881]
[1736841939120,3.18156132,3182.4,3182.2,0.28895881]
[1736841941055,3.14238,3182.3,3182.2,0.28895881]
[1736841941264,0.7921,3182.5,3182.2,0.28895881]
[1736841941424,3.18156228,3182.4,3182.2,0.101712]
[1736841941758,3.18156228,3182.4,3182.3,0.18717628]
[1736841942717,3.18156228,3182.4,3182.2,0.101712]
[1736841942921,3.14238,3182.3,3182.2,0.101712]
[1736841943164,3.53975623,3182.3,3182.2,0.101712]
[1736841943459,7.33185623,3182.3,3182.2,0.101712]
[1736841944361,3.93448,3182.3,3182.2,0.101712]
[1736841945525,3.97376484,3182.3,3182.2,0.101712]
[1736841945858,3.14238,3182.3,3182.2,0.101712]
[1736841946061,3.14238,3182.3,3181.8,0.7963]
[1736841946419,0.0392828,3182.2,3181.8,0.7963]
[1736841946859,0.0392828,3182.2,3181.8,3.8256387]
[1736841947036,3.1818128,3182.2,3181.8,3.8256387]
[1736841949025,3.1818128,3182.2,3181.9,0.3149]
[1736841949586,3.14258,3182.1,3181.9,0.3149]
[1736841950079,3.18195285,3182.0,3181.9,0.3149]
[1736841950969,3.14231,3182.4,3181.9,0.3149]
[1736841951277,3.14256,3182.2,3181.9,0.3149]
[1736841951445,3.14261,3182.1,3181.9,0.3149]
[1736841952525,3.08018314,3182.1,3181.9,0.3149]
[1736841952741,3.08018314,3182.1,3182.0,0.49608177]
[1736841953068,0.7921,3183.2,3182.2,0.3149]
[1736841953225,1.18450369,3183.2,3182.2,0.3149]
[1736841953425,3.14196,3182.8,3182.4,0.3149]
[1736841953863,3.14199,3182.7,3182.5,0.18091303]
[1736841954225,0.03921675,3182.6,3182.2,3.0293387]
[1736841954466,0.03921675,3182.6,3182.3,0.18105406]
[1736841954963,0.03921675,3182.6,3182.4,0.18098354]
[1736841955259,0.03921675,3182.6,3182.2,3.0293387]
[1736841955447,0.03921675,3182.6,3182.5,0.18091303]
[1736841955651,0.03921675,3182.6,3182.2,3.0293387]
[1736841955847,0.03921675,3182.6,3182.5,0.18091303]
[1736841956054,3.14199,3182.7,3182.2,3.0293387]
[1736841956358,3.14185,3182.9,3182.5,0.18091303]
[1736841956563,3.14185,3182.9,3182.2,3.0293387]
[1736841956960,3.14185,3182.9,3182.3,0.18105406]
[1736841957362,3.7670248,3183.1,3182.3,0.18105406]
[1736841957666,3.14192,3182.8,3182.3,0.18105406]
[1736841958063,3.14192,3182.8,3182.2,3.0293387]
[1736841958239,0.03921675,3182.7,3182.4,0.18098354]
[1736841958439,3.14192,3182.8,3182.3,0.18105406]
[1736841958649,0.03921675,3182.7,3182.5,0.18091303]
[1736841958851,0.03921675,3182.7,3182.4,0.18098354]
[1736841959129,3.14192,3182.8,3182.5,0.18091303]
[1736841959357,3.14192,3182.8,3182.2,3.0293387]
[1736841959771,3.14192,3182.8,3182.3,0.18105406]
[1736841960131,3.14192,3182.8,3182.2,3.0293387]
[1736841960495,0.03921675,3182.7,3182.3,0.18105406]
[1736841960787,0.03921675,3182.7,3182.2,3.0293387]
[1736841961068,0.03921675,3182.7,3182.3,0.18105406]
[1736841961469,0.03921675,3182.7,3182.2,3.0293387]
[1736841961664,3.14171,3183.0,3182.4,0.18098354]
[1736841961847,3.14181,3182.9,3182.3,0.18105406]
[1736841962043,3.14181,3182.9,3182.5,0.18091303]
[1736841962412,3.14181,3182.9,3182.6,0.18084252]
[1736841962527,3.14181,3182.9,3182.6,0.7886]
[1736841962731,3.14181,3182.9,3182.7,0.18077201]
[1736841963565,3.14165,3183.1,3182.7,0.18077201]
[1736841963732,3.14169,3183.0,3182.7,0.18077201]
[1736841965349,3.1415,3183.2,3182.7,0.18077201]
[1736841965568,0.03921675,3183.1,3182.7,0.18077201]
[1736841966073,3.1415,3183.2,3182.7,0.18077201]
[1736841966292,0.005,3183.4,3182.8,2.3149]
[1736841966495,3.14634,3183.4,3182.9,1.1035]
[1736841966803,3.14634,3183.4,3182.9,1.28350733]
[1736841967157,3.14634,3183.4,3182.9,1.31492178]
[1736841967354,0.005,3183.4,3182.9,1.28350733]
[1736841967594,0.005,3183.4,3182.9,1.31492089]
[1736841967757,0.005,3183.4,3183.2,2.3149]
[1736841967960,0.005,3183.4,3183.3,0.96830967]
[1736841974204,0.005,3183.4,3183.3,1.28320967]
[1736841974973,0.005,3183.4,3183.3,0.49460967]
[1736841975179,3.91559,3183.4,3183.3,0.17970967]
[1736841975497,3.14169,3183.0,3182.9,0.3149]
[1736841975808,3.14169,3183.0,3182.9,0.49489161]
[1736841975978,3.14169,3183.0,3182.9,0.3149]
[1736841976304,3.14169,3183.0,3182.9,0.49489161]
[1736841978264,3.14153,3183.2,3182.9,1.30339161]
[1736841978581,3.14153,3183.2,3182.9,3.30339161]
[1736841980476,0.005,3183.4,3182.9,3.30339161]
[1736841980685,3.1414,3183.3,3182.9,3.30339161]
[1736841982426,3.1414,3183.3,3182.9,3.33480634]
[1736841983438,3.1414,3183.3,3182.9,3.30339161]
[1736841983598,3.1415,3183.2,3182.9,3.30339161]
[1736841983803,3.1415,3183.2,3182.9,2.49489161]
[1736841988409,0.04421675,3183.4,3182.9,2.49489161]
[1736841988695,3.14635,3183.4,3183.0,0.8085]
[1736841989132,3.14635,3183.4,3183.1,0.17943673]
[1736841990139,0.005,3183.4,3183.1,0.17943673]
[1736841994265,3.14636,3183.4,3183.1,0.17943673]
[1736841994444,3.92438,3183.3,3183.1,0.17943673]
[1736841994613,0.7829,3183.3,3182.9,2.0]
[1736841994814,3.14149,3183.2,3183.0,0.17950722]
[1736841995361,3.18080675,3183.1,3183.0,0.17950722]
[1736841995725,3.14181,3182.9,3182.6,0.3149]
[1736841995925,3.92434,3183.3,3182.6,0.3149]
[1736841995926,3.14195,3182.8,3182.6,0.3149]
[1736841996266,0.7829,3182.8,3182.5,2.0]
[1736841996445,0.7879,3183.4,3182.6,0.7519]
[1736841996764,0.7879,3183.4,3182.9,2.3149]
[1736841996765,3.14145,3183.3,3182.9,2.3149]
[1736841997362,0.03921675,3183.2,3182.6,1.0668]
[1736841997564,3.14162,3183.1,3182.6,1.0668]
[1736841998034,3.14162,3183.1,3182.7,0.17332174]
[1736841999349,3.14179,3182.9,3182.7,0.17332174]
[1736842000666,0.03921675,3182.8,3182.7,0.17332174]
[1736842000871,3.14206,3182.7,3182.5,2.0]
[1736842001090,3.14206,3182.7,3182.6,0.16775535]
[1736842001428,3.14206,3182.7,3182.5,2.0]
[1736842001833,3.14206,3182.7,3182.6,0.16782968]
[1736842002073,3.14206,3182.7,3182.5,2.0]
[1736842002438,3.14206,3182.7,3182.6,0.16782968]
[1736842002743,4.24308768,3182.7,3182.5,2.0]
[1736842002963,0.03921675,3182.6,3182.5,2.0]
[1736842003535,3.18129675,3182.6,3182.5,2.0]
[1736842004003,0.03921675,3182.6,3182.0,0.3149]
[1736842004164,3.14232,3182.4,3182.0,0.3149]
[1736842004502,0.7829,3182.7,3182.2,0.3149]
[1736842004786,3.92477,3182.9,3182.2,0.3149]
[1736842004959,0.7829,3182.9,3182.3,0.48303486]
[1736842005164,3.18116675,3182.8,3182.3,0.48303486]
[1736842005954,0.03921675,3182.8,3182.3,0.48303486]
[1736842006154,3.14206,3182.7,3182.3,0.48303486]
[1736842006396,0.03921675,3182.6,3182.3,0.48303486]
[1736842006600,3.18129675,3182.6,3182.3,0.16813486]
[1736842007000,3.18129675,3182.6,3182.0,0.3149]
[1736842007159,3.18129675,3182.6,3182.4,0.16805394]
[1736842007542,3.18129675,3182.6,3182.5,0.16807187]
[1736842007785,4.28232643,3182.6,3182.5,0.16807187]
[1736842007954,3.14237,3182.4,3182.0,0.3149]
[1736842008150,0.03921675,3182.3,3182.0,0.3149]
[1736842008355,3.925,3182.6,3182.0,0.3149]
[1736842008974,0.03921675,3182.5,3182.0,0.3149]
[1736842009380,3.18140675,3182.5,3182.0,0.3149]
[1736842010485,3.14219,3182.5,3182.0,0.3149]
[1736842010882,0.03921675,3182.4,3182.0,0.3149]
[1736842012987,0.03921675,3182.5,3182.1,0.16835916]
[1736842013383,3.18140675,3182.5,3182.1,0.16835916]
[1736842015115,3.18140675,3182.5,3181.9,2.3149]
[1736842015277,3.18140675,3182.5,3182.2,0.16851751]
[1736842015476,3.18140675,3182.5,3181.9,2.3149]
[1736842015796,3.18140675,3182.5,3182.0,0.16865857]
[1736842017610,3.92475,3182.9,3182.2,1.0668]
[1736842017914,3.92475,3182.9,3182.4,0.3149]
[1736842018297,3.92475,3182.9,3182.5,0.16830595]
[1736842019395,3.92475,3182.9,3182.3,0.3149]
[1736842019596,3.92475,3182.9,3182.6,0.16823544]
[1736842019803,3.92475,3182.9,3182.3,0.3149]
[1736842020002,3.92475,3182.9,3182.7,0.16816494]
[1736842020217,3.18111675,3182.8,3182.3,0.3149]
[1736842020417,0.7829,3182.9,3182.3,0.3149]
[1736842020578,3.14173,3183.0,3182.3,0.3149]
[1736842021113,0.817,3183.1,3182.4,3.10752232]
[1736842021325,0.817,3183.1,3182.4,3.0761]
[1736842021326,0.03921675,3183.0,3182.4,3.0761]
[1736842021527,3.14161,3183.1,3182.4,3.0761]
[1736842021821,3.14161,3183.1,3182.4,3.10751955]
[1736842022028,0.03921675,3183.0,3182.4,3.0761]
[1736842022207,3.18094675,3183.0,3182.4,3.0761]
[1736842024026,0.817,3183.3,3182.5,0.03141956]
[1736842024322,0.03921675,3183.2,3182.7,0.3149]
[1736842024680,3.18070675,3183.2,3182.7,0.3149]
[1736842024881,3.14162,3183.1,3182.7,0.3149]
[1736842025079,0.03921675,3183.0,3182.7,0.3149]
[1736842025274,3.14162,3183.1,3182.7,0.3149]
[1736842025815,3.95844,3183.3,3182.7,0.3149]
[1736842026017,3.14156,3183.2,3182.7,0.3149]
[1736842027340,0.03921675,3183.1,3182.7,0.3149]
[1736842027636,3.1416,3183.1,3182.7,0.3149]
[1736842027798,3.95844,3183.3,3182.9,0.3149]
[1736842028094,3.1415,3183.2,3183.1,0.3149]
[1736842028297,3.1415,3183.2,3183.1,0.48242921]
[1736842028911,3.1415,3183.2,3183.1,0.16752921]
[1736842029239,3.1415,3183.2,3182.7,0.47105563]
[1736842029536,3.1415,3183.2,3182.8,0.16774069]
[1736842029935,3.1415,3183.2,3182.6,0.7612]
[1736842030138,3.1415,3183.2,3182.9,0.16767019]
[1736842030333,3.1415,3183.2,3182.6,0.7612]
[1736842030539,3.1415,3183.2,3183.0,0.1675997]
[1736842030697,3.1415,3183.2,3182.6,0.7612]
[1736842030902,3.1415,3183.2,3183.1,0.16752921]
[1736842031102,3.1415,3183.2,3182.6,0.7612]
[1736842031302,0.005,3183.4,3183.1,0.16752921]
[1736842031536,0.005,3183.4,3182.6,0.7612]
[1736842031537,3.14635,3183.4,3182.6,0.79261834]
[1736842032137,3.14635,3183.4,3182.7,0.63883619]
[1736842032701,0.005,3183.4,3183.0,0.7612]
[1736842033134,0.005,3183.4,3183.1,0.16752921]
[1736842033438,0.04421675,3183.4,3183.1,0.16752921]
[1736842034234,3.14141,3183.3,3183.1,0.16752921]
[1736842034599,0.005,3183.4,3183.1,0.16752921]
[1736842035137,3.14631,3183.4,3183.1,0.16752921]
[1736842037110,0.03921675,3183.3,3183.1,0.16752921]
[1736842037436,3.14631,3183.4,3183.1,0.16752921]
[1736842038552,0.005,3183.4,3183.1,0.16752921]
[1736842039414,3.1463,3183.4,3183.1,0.16752921]
[1736842039641,0.03921675,3183.3,3183.1,0.16752921]
[1736842039837,0.005,3183.4,3183.1,0.16752921]
[1736842043158,0.005,3183.4,3183.2,0.8028]
[1736842043380,0.005,3183.4,3183.3,4.22566779]
[1736842043529,0.005,3183.4,3183.3,4.39276997]
[1736842044060,0.005,3183.4,3183.3,4.86347484]
[1736842044356,0.005,3183.4,3183.3,4.8948834]
[1736842044759,0.005,3183.4,3183.3,8.3586734]
[1736842044962,0.005,3183.4,3183.3,8.89226484]
[1736842045163,0.005,3183.4,3183.3,11.89226484]
[1736842045326,0.005,3183.4,3183.3,13.47457054]
[1736842048257,0.005,3183.4,3183.3,13.00386567]
[1736842056187,0.005,3183.4,3183.3,12.13896567]
[1736842056587,0.005,3183.4,3183.3,2.96990218]
[1736842056794,0.005,3183.4,3183.3,2.16710218]
[1736842058358,0.005,3183.4,3183.3,0.16710218]
[1736842058686,0.005,3183.4,3183.1,2.0]
[1736842058687,0.8339,3183.4,3183.1,2.0]
[1736842058888,0.8339,3183.4,3183.2,0.15975109]
[1736842059442,0.005,3183.4,3183.2,0.19116619]
[1736842059652,0.005,3183.4,3183.2,1.32056619]
[1736842061080,0.005,3183.4,3183.2,1.28915109]
[1736842061271,0.005,3183.4,3183.2,0.47465109]
[1736842066259,0.005,3183.4,3183.3,0.0314108]
[1736842066460,0.005,3183.4,3183.3,0.16044998]
[1736842066660,0.005,3183.4,3183.2,0.34631079]
[1736842066854,0.005,3183.4,3183.3,0.16044998]
[1736842067052,0.005,3183.4,3183.2,0.34631079]
[1736842067250,0.005,3183.4,3183.3,0.16044998]
[1736842067583,0.005,3183.4,3183.2,0.34631079]
[1736842067825,0.005,3183.4,3183.3,0.16044998]
[1736842068121,0.005,3183.4,3183.2,0.34631079]
[1736842068418,0.005,3183.4,3183.3,0.16044998]
[1736842068784,0.005,3183.4,3183.2,0.34631079]
[1736842069022,0.005,3183.4,3183.3,0.47534998]
[1736842070497,0.005,3183.4,3183.3,3.61673998]
[1736842072835,0.005,3183.4,3183.3,3.64815078]
[1736842073036,0.005,3183.4,3183.3,7.47955078]
[1736842073246,0.005,3183.4,3183.3,7.47063998]
[1736842073744,0.005,3183.4,3183.3,10.47581347]
[1736842074544,0.005,3183.4,3183.3,11.02581347]
[1736842080569,0.005,3183.4,3183.3,8.02063998]
[1736842080875,0.005,3183.4,3183.3,9.47063998]
[1736842081369,0.005,3183.4,3183.3,2.47534998]
[1736842083789,0.7685,3183.4,3183.3,2.47534998]
[1736842084582,3.90979,3183.4,3183.3,0.47534998]
[1736842084804,4.33998575,3183.4,3183.3,0.16044998]
[1736842085008,4.33998575,3183.4,3182.6,0.3149]
[1736842085009,0.7635,3183.0,3182.6,0.3149]
[1736842085182,0.03921675,3182.9,3182.6,0.3149]
[1736842085386,3.90543,3182.8,3182.7,0.47484244]
[1736842085709,3.90543,3182.8,3182.7,0.3149]
[1736842085908,4.295973,3182.8,3182.7,0.47502958]
[1736842086218,4.295973,3182.8,3182.7,0.3149]
[1736842086371,0.7635,3182.7,3182.2,0.3149]
[1736842086572,0.7635,3182.5,3182.2,0.3149]
[1736842086788,0.7635,3182.5,3182.3,0.47545201]
[1736842087113,1.154066,3182.5,3182.3,0.47545201]
[1736842087402,0.7635,3182.5,3182.3,0.3149]
[1736842087795,0.7635,3182.5,3182.2,0.3149]
[1736842087992,0.7635,3182.5,3182.4,0.47538149]
[1736842088309,0.7635,3182.5,3182.4,0.3149]
[1736842088667,0.7635,3182.8,3182.4,0.47538149]
[1736842089207,0.7635,3182.8,3182.4,0.16048149]
[1736842089390,3.18120675,3182.7,3182.4,0.16048149]
[1736842089706,3.90559,3182.6,3182.5,0.16059298]
[1736842089904,0.7635,3182.6,3182.1,2.0]
[1736842090077,0.7635,3182.6,3182.2,0.16080454]
[1736842090291,1.154048,3182.6,3182.2,0.16080454]
[1736842090928,0.80271675,3182.6,3182.2,0.16080454]
[1736842091230,0.7635,3182.6,3182.2,0.16080454]
[1736842097528,0.781,3182.9,3182.2,0.16080454]
[1736842097870,0.781,3182.9,3182.3,3.03142106]
[1736842098431,0.781,3182.9,3182.4,0.1614797]
[1736842101886,1.173259,3182.9,3182.4,0.1614797]
[1736842102188,0.781,3182.7,3182.1,2.0]
[1736842102354,0.781,3182.4,3182.1,2.0]
[1736842102550,0.82021675,3182.4,3182.1,2.0]
[1736842102859,0.781,3182.4,3182.2,0.16161554]
[1736842105463,0.781,3183.2,3182.2,0.16161554]
[1736842105669,3.18085675,3183.1,3182.2,3.65037079]
[1736842105890,3.18085675,3183.1,3182.2,3.61894554]
[1736842110467,0.7611,3183.0,3182.2,0.16161554]
[1736842110691,0.7611,3182.6,3182.2,0.16161554]
[1736842110894,0.03921675,3182.5,3182.2,0.16161554]
[1736842111090,3.57571043,3182.5,3182.2,0.16161554]
[1736842111484,3.53649368,3182.5,3181.9,2.3149]
[1736842111680,3.53649368,3182.5,3182.3,0.16158141]
[1736842111889,3.57571043,3182.5,3181.9,2.3149]
[1736842112073,3.57571043,3182.5,3182.4,0.1615109]
[1736842112395,3.57571043,3182.5,3181.9,2.3149]
[1736842112591,0.43368104,3182.4,3181.9,2.3149]
[1736842112756,0.43368104,3182.4,3182.0,0.161793]
[1736842112962,0.03921675,3182.3,3182.0,0.161793]
[1736842113687,0.43368104,3182.4,3182.0,0.161793]
[1736842113883,0.7611,3182.6,3182.0,0.161793]
[1736842115099,3.9032,3182.6,3182.0,0.161793]
[1736842116178,0.7611,3182.6,3182.0,3.50811828]
[1736842116377,0.7611,3182.6,3182.0,6.65077828]
[1736842116690,0.7611,3182.6,3182.0,6.619353]
[1736842117267,0.7611,3182.6,3182.0,0.476693]
[1736842117498,0.80031675,3182.6,3182.0,0.476693]
[1736842117807,0.7611,3182.6,3182.0,0.476693]
[1736842117961,3.14184,3182.9,3182.1,0.47143381]
[1736842118167,0.03921675,3182.8,3182.4,2.0]
[1736842118369,0.03921675,3183.0,3182.5,0.16148201]
[1736842118671,3.57509943,3183.0,3182.5,0.16148201]
[1736842119380,0.7611,3183.1,3182.5,0.19290247]
[1736842119712,0.03921675,3183.3,3182.8,2.7636]
[1736842119893,0.005,3183.4,3182.8,5.93686523]
[1736842120201,0.005,3183.4,3182.9,0.16125721]
[1736842120996,0.005,3183.4,3183.0,0.47143381]
[1736842121165,0.005,3183.4,3183.0,0.63262053]
[1736842122099,0.005,3183.4,3183.0,0.16118672]
[1736842122503,0.005,3183.4,3182.8,0.7636]
[1736842122668,0.005,3183.4,3183.1,0.16093421]
[1736842122863,0.005,3183.4,3182.8,0.7636]
[1736842123270,0.005,3183.4,3182.9,0.16107519]
[1736842124575,0.005,3183.4,3182.7,2.0]
[1736842124797,0.005,3183.4,3182.8,0.16114569]
[1736842125393,0.005,3183.4,3183.2,3.90507]
[1736842125593,0.005,3183.4,3183.3,3.14139]
[1736842125988,0.005,3183.4,3183.3,3.30215725]
[1736842126299,0.005,3183.4,3183.3,3.30965725]
[1736842126479,0.005,3183.4,3183.3,3.62455725]
[1736842128185,0.005,3183.4,3183.3,3.65596539]
[1736842128597,0.005,3183.4,3183.3,3.62455725]
[1736842128793,0.005,3183.4,3183.3,3.30965725]
[1736842129148,0.005,3183.4,3183.3,0.16076725]
[1736842129458,0.005,3183.4,3183.3,6.14139]
[1736842129631,0.005,3183.4,3183.3,6.30215725]
[1736842130743,0.005,3183.4,3183.3,7.63075725]
[1736842134820,0.005,3183.4,3183.3,7.63825725]
[1736842135138,0.005,3183.4,3183.3,7.95315725]
[1736842135429,0.005,3183.4,3183.3,7.63825725]
[1736842135897,0.005,3183.4,3183.3,7.21975725]
[1736842136102,0.005,3183.4,3183.3,7.07325725]
[1736842138340,0.005,3183.4,3183.3,3.92436725]
[1736842138641,0.005,3183.4,3183.3,0.16076725]
[1736842138823,0.005,3183.4,3183.1,5.90509]
[1736842139133,0.005,3183.4,3183.3,0.16009645]
[1736842139337,0.005,3183.4,3183.2,3.0]
[1736842139338,0.793,3183.4,3183.2,0.16016693]
[1736842139635,0.793,3183.4,3183.3,0.16009645]
[1736842139836,0.793,3183.4,3183.0,3.0]
[1736842140217,0.793,3183.4,3182.9,5.0]
[1736842140407,0.793,3183.4,3183.1,0.16023741]
[1736842140608,0.793,3183.4,3182.9,2.0]
[1736842140835,0.793,3183.4,3183.2,0.16013573]
[1736842141037,0.793,3183.4,3182.9,2.0]
[1736842141332,0.793,3183.4,3183.3,0.16006525]
[1736842141534,0.83221675,3183.4,3182.9,2.0]
[1736842141733,0.793,3183.4,3183.3,0.16015363]
[1736842141941,0.793,3183.4,3182.9,2.0]
[1736842142143,0.793,3183.4,3183.3,0.16015363]
[1736842142313,0.793,3183.4,3182.9,2.0]
[1736842142515,0.793,3183.4,3183.3,0.16015363]
[1736842142715,0.793,3183.4,3182.9,2.0]
[1736842142920,0.793,3183.4,3183.3,0.16015363]
[1736842143121,0.793,3183.4,3182.9,2.0]
[1736842143810,1.19033068,3183.4,3183.0,0.16043787]
[1736842144010,0.788,3183.2,3183.0,0.16043787]
[1736842145110,0.03921675,3183.1,3183.0,0.16043787]
[1736842145722,0.03921675,3183.1,3182.5,2.0]
[1736842145924,0.03921675,3183.1,3183.0,0.16043787]
[1736842146143,0.03921675,3183.1,3182.5,2.0]
[1736842146308,0.03921675,3183.1,3183.0,0.16043787]
[1736842146641,0.788,3183.2,3183.0,0.16043787]
[1736842146845,0.03921675,3183.1,3182.6,3.0]
[1736842147031,0.03921675,3183.1,3182.5,5.14215]
[1736842147032,0.03921675,3183.1,3182.5,2.0]
[1736842147563,0.788,3183.0,3182.5,2.0]
[1736842147729,0.03921675,3182.9,3182.5,2.0]
[1736842147924,0.03921675,3182.9,3182.6,0.16071986]
[1736842149114,3.00517349,3182.8,3182.6,0.16071986]
[1736842149411,0.788,3182.4,3181.7,2.0]
[1736842149650,0.788,3182.2,3181.7,2.0]
[1736842149966,0.03921675,3182.1,3181.7,2.0]
[1736842152814,0.788,3182.2,3181.7,2.0]
[1736842155557,6.14715349,3182.8,3181.8,3.14286]
[1736842155759,1.44290472,3182.7,3181.8,3.14286]
[1736842155964,1.44290472,3182.7,3181.9,0.7832]
[1736842156322,1.44290472,3182.7,3181.9,3.92588]
[1736842156323,0.7885,3182.7,3181.9,3.92588]
[1736842156527,0.7885,3182.7,3182.0,3.0]
[1736842158060,0.7885,3182.7,3181.9,0.7832]
[1736842158254,0.7885,3182.5,3181.9,2.0]
[1736842158459,0.7885,3182.5,3181.9,5.14277]
[1736842158661,0.7885,3182.8,3182.0,3.92584]
[1736842158825,0.7885,3182.8,3182.0,6.92584]
[1736842159021,0.7885,3182.8,3182.3,5.14237]
[1736842159247,3.14151,3183.2,3182.4,3.0]
[1736842159448,0.7885,3183.2,3182.7,2.0]
[1736842159761,0.03921675,3183.1,3182.7,2.0]
[1736842160527,0.7885,3183.2,3182.7,2.0]
[1736842160944,0.03921675,3183.1,3182.7,2.0]
[1736842161828,0.7885,3183.2,3182.7,2.0]
[1736842162557,0.005,3183.4,3182.7,5.17329778]
[1736842162729,0.04421675,3183.4,3182.7,5.14188]
[1736842163035,0.04421675,3183.4,3182.8,0.16170223]
[1736842164375,0.005,3183.4,3182.8,0.16170223]
[1736842164530,0.04421675,3183.4,3182.8,0.16170223]
[1736842164860,0.005,3183.4,3182.8,0.19311784]
[1736842165230,0.005,3183.4,3182.8,0.16170223]
[1736842167932,0.005,3183.4,3182.9,0.7832]
[1736842168136,0.005,3183.4,3182.9,0.94455087]
[1736842168571,0.005,3183.4,3183.2,2.0]
[1736842168753,0.005,3183.4,3183.3,0.7832]
[1736842168946,0.005,3183.4,3183.3,1.25887243]
[1736842170646,0.005,3183.4,3183.3,1.29028249]
[1736842172860,0.005,3183.4,3183.3,1.25887243]
[1736842173161,0.005,3183.4,3183.3,0.47567243]
[1736842174288,0.005,3183.4,3183.3,0.76914879]
[1736842176253,3.57955043,3183.4,3183.3,0.76914879]
[1736842176479,0.39904368,3183.4,3183.3,0.45424879]
[1736842176695,3.14629,3183.4,3183.3,0.45424879]
[1736842176889,0.005,3183.4,3183.3,0.16077243]
[1736842177094,0.005,3183.4,3183.0,0.3149]
[1736842177297,0.005,3183.4,3183.3,0.16048638]
[1736842177601,0.005,3183.4,3183.0,0.3149]
[1736842177795,0.005,3183.4,3183.3,0.16048638]
[1736842178295,0.005,3183.4,3183.0,0.3149]
[1736842178511,0.005,3183.4,3183.3,0.16048638]
[1736842178724,0.005,3183.4,3183.0,3.48799583]
[1736842178866,0.005,3183.4,3183.3,0.16048638]
[1736842179061,0.005,3183.4,3183.3,0.3149]
[1736842179301,0.005,3183.4,3183.3,0.47538638]
[1736842180299,0.005,3183.4,3183.3,1.30758638]
[1736842180869,0.005,3183.4,3183.3,3.30758638]
[1736842182408,0.005,3183.4,3183.3,3.3389964]
[1736842182573,0.005,3183.4,3183.3,9.4878864]
[1736842182913,0.005,3183.4,3183.3,9.45647638]